Cogmind - Beta 14 @@@ ROGUE MODE // 2024.10.10 @ 21:16:11 Player: Hokome Result: Destroyed by G-34 Mercenary with Small Laser Performance ------------- Evolutions (0) 0 Regions Visited (1) 200 Robots Destroyed (11) 55 Value Destroyed (318) 318 Prototype IDs (1) 20 Alien Tech Used (0) 0 Bonus (0) 0 TOTAL SCORE: 593 Bonus ------- None Cogmind --------- Core Integrity 0/250 Matter 250/300 Energy 72/100 System Corruption 0% Temperature Cool (7) Movement Flying (200) Ox2 Location -10/Materials Parts ------- > --- POWER (1) -------- (None) > --- PROPULSION (2) --- Flight Unit > --- UTILITY (2) ------ Medium Storage Unit > --- WEAPON (2) ------- Datajack > --- INVENTORY (10) --- Ion Engine Peak State ------------ > --- POWER ------------ Heavy Ion Engine > --- PROPULSION ------- Aluminum Leg Aluminum Leg > --- UTILITY ---------- Core Shielding > --- WEAPON ----------- EM Pulse Gun Beam Rifle > --- INVENTORY -------- Ion Engine Aluminum Leg Small Laser Assault Rifle [Rating: 9] Favorites ----------- Power Heavy Ion Engine Engine Heavy Ion Engine Propulsion Aluminum Leg Leg Aluminum Leg Flight Unit Flight Unit Utility Core Shielding Storage Medium Storage Unit Protection Core Shielding Weapon EM Pulse Gun Energy Gun EM Pulse Gun Ballistic Gun Assault Rifle Launcher Grenade Launcher Special Melee Weapon Datajack Build | -11 -10 ------- Run | Yrd Mat Slots Evolved . | . . Power . | . . Propulsion . | . . Utility . | . . Weapon . | . . Parts Attached 17 | 5 12 Power 2 | 1 1 Engine 2 | 1 1 Core . | . . Reactor . | . . Propulsion 5 | 2 3 Treads . | . . Leg 3 | 2 1 Wheel . | . . Hover . | . . Flight 2 | . 2 Utility 2 | . 2 Device . | . . Storage 1 | . 1 Processor . | . . Hackware . | . . Protection 1 | . 1 Artifact . | . . Weapon 8 | 2 6 Energy Gun 5 | 2 3 Energy Cannon . | . . Ballistic Gun 1 | . 1 Ballistic Cannon . | . . Launcher 1 | . 1 Special Weapon . | . . Impact Weapon . | . . Slashing Weapon . | . . Piercing Weapon . | . . Special Melee Weapon 1 | . 1 Unidentified Prototypes 1 | . 1 Parts Lost 11 | . 11 Power 1 | . 1 Propulsion 4 | . 4 Utility 1 | . 1 Weapon 5 | . 5 Highest Loss Streak 6 | . 6 To Critical Strikes . | . . Average Slot Usage (%) 74 | . 74 Engine 13 | . 13 Leg 19 | . 19 Flight 1 | . 1 Storage 3 | . 3 Protection 9 | . 9 Energy Gun 19 | . 19 Ballistic Gun 4 | . 4 Launcher 2 | . 2 Peak Build Rating 9 | 5 9 Average Rating 6 | 3 7 On Entrance 2 | . 5 Naked Turns . | . . Heaviest Build 22 | 9 22 Greatest Support 20 | 20 20 Greatest Overweight (x) 7 | . 7 Average Overweight (x) . | . . Largest Inventory Capacity 10 | 5 10 Average Capacity 6 | 5 6 Most Carried 5 | 2 5 Average Carried 3 | . 3 Final Capacity 10 | 5 10 Final Carried 1 | 1 1 Class Distribution -------------------- 100% | Mutant Dominant Class ---------------- Mutant | -10/Materials Resources | -11 -10 ----------- Run | Yrd Mat Matter Collected 361 | 250 111 Remotely . | . . Salvage Created 332 | . 332 Parts 27 | . 27 Haulers Intercepted 1 | . 1 Recyclers Shooed 5 | . 5 Parts Field Recycled . | . . Retrieved Matter . | . . Parts Self-Destructed . | . . Prevented . | . . Kills | -11 -10 ------- Run | Yrd Mat Combat Hostiles Destroyed 8 | . 8 Guns 4 | . 4 AOE 4 | . 4 Classes Destroyed 4 | . 4 Builder 1 | . 1 Hauler 1 | . 1 Mechanic 1 | . 1 Grunt 8 | . 8 Best Kill Streak 5 | . 5 Combat Bots Only 4 | . 4 Max Kills in Single Turn 2 | . 2 Gunslinging . | . . Exploded 1 | . 1 Melee . | . . Uniques/NPCs Destroyed . | . . Combat | -11 -10 -------- Run | Yrd Mat Hostile Shots Fired 125 | . 125 Missed 34 | . 34 Damage Taken 1106 | . 1106 Core 254 | . 254 Absorbed by Shields . | . . Redirected to Shielding 50 | . 50 Core Remaining (%) 100 | 100 . Volleys Fired 30 | . 30 Largest 2 | . 2 Hottest 96 | . 96 Shots Fired 51 | . 51 Gun 43 | . 43 Cannon . | . . Launcher 8 | . 8 Special . | . . Kinetic 10 | . 10 Thermal 26 | . 26 Explosive 8 | . 8 Electromagnetic 7 | . 7 Robot Hit Streak 3 | . 3 Robot Miss Streak 3 | . 3 Penetration Max . | . . Secondary Targets . | . . Shots Hit Robots 21 | . 21 Core Hits 24 | . 24 Critical Kills . | . . Critical Parts Destroyed . | . . Critical Strikes 1 | . 1 Burn 1 | . 1 Melee Attacks 4 | . 4 Impact . | . . Slashing . | . . Piercing . | . . Sneak Attacks . | . . Combat Hostiles . | . . Follow-up Attacks . | . . Damage Inflicted 877 | . 877 Guns 293 | . 293 Cannons . | . . Explosions 563 | . 563 Melee . | . . Ramming 21 | . 21 Kinetic 32 | . 32 Thermal 206 | . 206 Explosive 563 | . 563 Electromagnetic 55 | . 55 Impact . | . . Slashing . | . . Piercing . | . . Highest Corruption . | . . Average Corruption . | . . Corruption Purged . | . . Corruption Blocked . | . . Overload Shots . | . . Overflow Damage 15 | . 15 Projectiles . | . . Explosions 15 | . 15 Melee . | . . Knockbacks . | . . Impact . | . . Kinetic . | . . Secondary . | . . Self-Inflicted Damage 17 | . 17 Shots 1 | . 1 Rammed . | . . Targets Rammed 4 | . 4 Kicked 4 | . 4 Crushed . | . . Highest Temperature 118 | . 118 Average Temperature 46 | . 46 Received Heat Transfer 555 | . 555 Siege Activations . | . . Robots Corrupted . | . . Combat Hostiles . | . . Parts Fried . | . . Impact Corruptions . | . . Robots Melted . | . . Combat Hostiles . | . . Parts Melted . | . . Heat Transferred 581 | . 581 Parts Sabotaged . | . . Parts Stolen . | . . Parts Stripped . | . . Power Chain Reactions . | . . Alert | -11 -10 ------- Run | Yrd Mat Peak Influence 266 | . 266 Initial . | . . Average 38 | . 43 Maximum Alert Level 1 | . 1 Low Security (%) 95 | 100 94 Level 1 4 | . 5 Level 2 . | . . Level 3 . | . . Level 4 . | . . Level 5 . | . . High Security . | . . Max Security . | . . Squads Dispatched 4 | . 4 Investigation 1 | . 1 Extermination . | . . Reinforcement 3 | . 3 Assault . | . . Garrison . | . . Intercept . | . . Searches Triggered . | . . Construction Impeded . | . . Haulers Reinforced . | . . Active Scanning Responses . | . . Cargo Convoy Interrupts . | . . Stealth | -11 -10 --------- Run | Yrd Mat Distress Signals 5 | . 5 Communications Jammed . | . . Distress Signals . | . . Times Spotted 24 | . 24 Peak Tracking Total 7 | . 7 Tactical Retreats . | . . Traps | -11 -10 ------- Run | Yrd Mat Traps Triggered 3 | . 3 Indirectly . | . . Trap Hack Attempts . | . . Triggered . | . . Disarmed . | . . Reprogrammed . | . . Reused . | . . Traps Extracted . | . . Installed . | . . Triggered . | . . Machines | -11 -10 ---------- Run | Yrd Mat Machines Disabled . | . . Max in Single Turn . | . . Machines Repaired . | . . Machines Dismantled . | . . Machines Sabotaged . | . . Overloaded Fab Kills . | . . Hacking | -11 -10 --------- Run | Yrd Mat Machines Accessed 1 | . 1 Terminals 1 | . 1 Fabricators . | . . Repair Stations . | . . Recycling Units . | . . Scanalyzers . | . . Garrison Access . | . . Total Hacks 1 | . 1 Successful 1 | . 1 Failed . | . . Catastrophic . | . . Database Lockouts . | . . Manual . | . . Terminals 1 | . 1 Fabricators . | . . Repair Stations . | . . Recycling Units . | . . Scanalyzers . | . . Garrison Access . | . . Terminal Hacks 1 | . 1 Record 1 | . 1 Fabricator Hacks . | . . Repair Station Hacks . | . . Recycling Unit Hacks . | . . Scanalyzer . | . . Garrison Access Hacks . | . . Unauthorized Hacks . | . . Terminals . | . . Fabricators . | . . Repair Stations . | . . Recycling Units . | . . Scanalyzers . | . . Garrison Access . | . . Data Cores Recovered . | . . Used . | . . Hacking Detections 1 | . 1 Full Trace Events . | . . Feedback Events . | . . Feedback Blocked . | . . Robot Schematics Acquired . | . . Robots Built . | . . Authchips . | . . Time . | . . Total Robot Build Rating . | . . Part Schematics Acquired . | . . Parts Built . | . . Authchips . | . . Time . | . . Total Part Build Rating . | . . Parts Repaired . | . . Time . | . . Parts Recycled . | . . Recycled Matter . | . . Retrieved Matter . | . . Retrieved Components . | . . Parts Scanalyzed . | . . Part Schematics Acquired . | . . Parts Damaged . | . . Bothacking | -11 -10 ------------ Run | Yrd Mat Used RIF Installer . | . . Robots Hacked 1 | . 1 Non-combat . | . . Combat 1 | . 1 Robot Hacks Applied 2 | . 2 parse_system 2 | . 2 Relay Couplers Released . | . . Fabnet Peak Effective % . | . . Robots Rewired . | . . Allies Hacked . | . . Hacks Repelled . | . . Allies | -11 -10 -------- Run | Yrd Mat Total Allies . | . . Largest Group . | . . Highest-Rated Group . | . . Highest-Rated Ally . | . . Total Orders . | . . Ally Attacks . | . . Total Damage . | . . Kills . | . . Allies Corrupted . | . . Allies Melted . | . . Intel | -11 -10 ------- Run | Yrd Mat Robot Analysis Total . | . . Derelict Logs Recovered . | . . Drone Launches . | . . Drone Recoveries . | . . Exploration | -11 -10 ------------- Run | Yrd Mat Turns Passed 692 | 82 610 Spaces Moved 399 | 63 336 Core 29 | 5 24 Treads . | . . Legs 360 | 58 302 Wheels . | . . Hover . | . . Flight 10 | . 10 Fastest Speed 50 | 50 117 Average Speed 141 | 114 146 Slowest Speed 400 | 120 400 Overloaded Moves . | . . Propulsion Burnouts . | . . Robots Hopped . | . . Cave-ins Triggered . | . . Exploration Rate (%) 26 | 4 49 Regions Visited 1 Branch Regions . Pre-discovered Areas . | . . Known Exits Taken . | . . Unknown Exits Taken 1 | 1 . Scrap Searched . | . . Spaces Dug . | . . Terrain Destroyed 46 | . 46 Melee . | . . Projectile . | . . AOE 46 | . 46 Terrain Rammed . | . . Walls Destroyed . | . . Machines Disabled . | . . Actions | -11 -10 --------- Run | Yrd Mat Total 474 | 73 401 Wait . | . . Move 398 | 62 336 Hop . | . . Pick Up 18 | 6 12 Fast Attach . | . . Attach 14 | 5 9 Detach . | . . Swap 3 | . 3 Drop 3 | . 3 Fire 30 | . 30 Melee 4 | . 4 Ram . | . . Kick 4 | . 4 Crush . | . . Escape Stasis . | . . Rewire . | . . Trap . | . . Miscellaneous . | . . Route ------- -11/Scrapyard -10/Materials (discovered 1 exit: [*Min]) History --------- Turn | Location | Event 6 | -11/Scrapyard | Discovered new exit (range 16) 83 | -11/Scrapyard | Entered Materials 232 | -10/Materials | Discovered new exit (range 15) 305 | -10/Materials | Build established: Mutant 503 | -10/Materials | Lost 3 parts (2n1w) 545 | -10/Materials | Core integrity fell below 50% 688 | -10/Materials | Core integrity fell below 20% 693 | -10/Materials | Destroyed by G-34 Mercenary with Small Laser Last Messages --------------- U-05 Engineer lays Concrete. Acquired Flight Unit. Flying robots can pass through spaces occupied by others, even hostile robots. U-05 Engineer lays Concrete. Acquired Flight Unit. Sml. Laser destroyed. EM Pulse Gun destroyed. Jacked G-34 Mercenary... Right-click on available options for more info. Keyboard players can use Shift-a~z. >>parse_system Reading system data... U-05 Engineer lays Concrete. Flight Unit destroyed. Core Shielding destroyed. Jacked G-34 Mercenary... >>parse_system Reading system data... U-05 Engineer lays Concrete. Map ----- +----------------------------------------------------+ | ???????????????????????? ???????????????????????? | | ???????????????? ??????? ???????????????????????? | | ???????????????# ????? ???????????????????????? | | ??????????????## #####+####???????????????????? | | ????????????? ??????????????????? | | ??###??+#????? ! ???????????????????? | | ? #?????? ????????????????????? | | """ """ #??????# """ #????????????????????? | | """ """ #??????# """ ##???????????????????? | | """ """ #??????# """ T#???????????????????? | | #????### o#????????????????????? | | ] #????#"" ##########???????????? | | #????#"T k # #???????????? | | ! #????#"" !!! # #???????????? | | ####/ ########## !!g # #???????????? | | ! g # [[ #???????????? | | + [[/ #???????????? | | * % """ # [/ * #???????????? | | ## % """ ######### # #???????????? | | ##### """ ## T # k # #???????????? | | ???#" ## # # #???????????? | | ???#" ## # ##########???????????? | | ???#" # #u t#????????????????????? | | ???#T # # [ #????????????????????? | | ???#" !#####+### = k######???????????????? | | ???#" [! % % u @ g +???????????????? | | ???#" % ############## g ##???????????????? | | ???## ! ##?????? #????????????????? | | ????# # #??????? #????????????????? | | ????# *% # ##??????? #????????????????? | | ????# != ???????? #????????????????? | | ????# ##???????+## #????????????????? | | ???? ##?????????? #????????????????? | | ??? ###"Y"##### #????????????#????????????????? | | ??##??#"""#???? #?????????????????????????????? | | ??????#####???? #?????????????????????????????? | | ???????????????? ??????????????????????????????? | | ????????????????????????????????????????????????? | | ????????????????????????????????????????????????? | | ????????????????????????????????????????????????? | | ????????????????????????????????????????????????? | | ????????????????????????????????????????????????? | | ????????????????????????????????????????????????? | | ????????????????????????????????????????????????? | | ????????????????????????????????????????????????? | | ????????????????????????????????????????????????? | | ????????????????????????????????????????????????? | | ????????????????????????????????????????????????? | | ????????????????????????????????????????????????? | | ????????????????????????????????????????????????? | +----------------------------------------------------+ Best States ------------- Heat Dissipation 25 Energy Generation 14 Energy Capacity 280 Matter Stores 300 Matter Capacity 300 Sight Range 16 Terrain Scan Density 10 Core Shielding 20 Evasion (%) 55 Item Schematics ----------------- None Robot Schematics ------------------ None Fabricated ------------ Nothing Alien Tech Used ----------------- None Achievements -------------- Hey, That's Mine! Loot Pinata Risk Taker Challenges ------------ None Game ------ Seed TrapMetafiberStatue Manual? 0 Play Time 00:10:44 Cumulative 1.5 hours Start 2024.10.10 @ 21:03:47 End 2024.10.10 @ 21:16:11 Sessions 1 Manual Loads 0 Difficulty Rogue Special Mode None Game No. 6 Rogue 6 Adventurer 0 Explorer 0 Win Type - Total 0 Types 0/0/0/0/0/0/0/0/0 Lore% 3 Gallery% 3 Achievement% 4 Wizard Run 0 Options --------- Layout 1 ASCII 0 Keyboard 0 Movement Arrows Keybinds 0 Fullscreen 1 Font 32/SmallcapsGlow Map View 50x35 Zoom Use 0% Tactical HUD 0 Map Filters NONE Filters NONE Steam 1 RUN: dffc3863-11b8-4f78-aa7a-2d6ae82c023d